[Event "Israel National League 2024"]
[Site "Israel"]
[Date "2024.03.08"]
[Round "11.33"]
[White "Gladyszev, Oleg"]
[Black "Smirin, Ilia"]
[Result "0-1"]
[ECO "E73"]
[WhiteElo "2410"]
[BlackElo "2582"]
[Annotator "TA"]
[PlyCount "177"]
[EventDate "2024.01.07"]
[EventType "team-tourn"]
[EventCountry "ISR"]
[SourceTitle "playchess.com"]
[Source "ChessBase"]
[SourceQuality "1"]
[TimeControl "40/5400+30:1800+30"]

{[%evp 76,177,0,0,0,0,0,0,0,0,0,0,0,0,0,0,0,0,0,-210,0,0,0,0,0,0,0,0,0,0,0,0,0,0,0,0,0,0,0,0,0,-130,-142,-146,-147,-699,-20,-29,0,-911,-905,-854,-829,-941,-841,-911,-783,-6750,-4133,-29954,-29958,-29956,-29957,-29951,-29957,-29953,-29950,-29955,-29953,-29953,-29953,-29960,-29964,-29961,-29966,-29965,-29967,-29975,-29977,-29976,-29977,-29976,-29978,-29980,-29975,-29971,-29976,-29975,-29977,-29975,-29978,-29977,-29978,-29982,-29983,-29983,-29984,-29984,-29985,-29985,-29986,-29990,-29988,-29991]} 1. d4 {[%emt 0:07:26]} Nf6 {[%emt 0:02:19]} 2. c4 {[%emt 0:00:05]} g6 {[%emt 0:01:09]} 3. Nc3 {[%emt 0:00:07]} Bg7 {[%emt 0:00:03]} 4. e4 {[%emt 0:00:05]} d6 {[%emt 0:00:04]} 5. Be2 {[%emt 0:01:31]} O-O {[%emt 0:00:38]} 6. h4 {[%emt 0:01:29]} h5 {[%emt 0:04:17]} 7. Nh3 {[%emt 0:10:16] E73: Königsindisch (Awerbach-Angriff).} Nc6 {[%emt 0:01:36]} 8. d5 {[%emt 0:02:25]} Ne5 {[%emt 0:01:18]} 9. f3 {[%emt 0:13:17]} c6 {[%emt 0:00:57]} 10. Nf2 $146 {[%emt 0:05:51]} ({Predecessor:} 10. Be3 a6 11. Nf4 b5 12. cxb5 axb5 13. dxc6 b4 14. Ncd5 Nxc6 15. Bb6 Qd7 16. Bb5 {1-0 Ruckschloss,K (2290)-Csala,J (2143) Tatry op Tatranske Zruby 2011 (1)}) 10... a6 {[%emt 0:09:56]} 11. Bf4 {[%emt 0:06:30]} cxd5 {[%emt 0:04:05]} 12. cxd5 {[%emt 0:00:35]} Bd7 {[%emt 0:00:07]} 13. Qd2 {[%emt 0:09:09]} Rc8 {[%emt 0:01:13]} 14. O-O {[%emt 0:05:39]} Kh7 {[%emt 0:08:01]} 15. Rfc1 {[%emt 0:10:53]} Nc4 {[%emt 0:07:40]} 16. Bxc4 {[%emt 0:00:21]} Rxc4 {[%emt 0:00:04]} 17. Ncd1 {[%emt 0:00:41]} Rc8 {[%emt 0:07:54]} 18. Ne3 {[%emt 0:01:20]} b5 {[%emt 0:02:17]} 19. Rxc8 {[%emt 0:05:11]} Qxc8 {[%emt 0:04:32]} 20. Nd3 {[%emt 0:00:50]} Qb7 {[%emt 0:42:20]} 21. Rc1 {[%emt 0:01:54]} Qb6 {[%emt 0:00:00]} 22. Kf1 {[%emt 0:05:24]} a5 {[%emt 0:00:00]} 23. Nc2 {[%emt 0:04:27]} b4 {[%emt 0:00:00]} 24. Be3 {[%emt 0:00:06]} Qa6 {[%emt 0:00:00]} 25. Nd4 {[%emt 0:00:09]} e6 {[%emt 0:00:00]} 26. dxe6 {[%emt 0:01:51]} fxe6 {[%emt 0:00:00]} 27. Kg1 {[%emt 0:00:50]} e5 {[%emt 0:00:00]} 28. Nc2 {[%emt 0:00:36]} Be6 {[%emt 0:00:00]} 29. b3 {[%emt 0:00:34]} Rc8 {[%emt 0:00:00]} 30. Nce1 {[%emt 0:00:13]} Rxc1 {[%emt 0:00:00]} 31. Qxc1 {[%emt 0:00:06]} d5 {[%emt 0:00:00]} 32. Nc5 {[%emt 0:00:35]} Qc6 {[%emt 0:00:00]} 33. Nxe6 {[%emt 0:00:09]} Qxe6 {[%emt 0:00:00]} 34. exd5 {[%emt 0:00:33]} Nxd5 {[%emt 0:00:00]} 35. Qc4 {[%emt 0:00:30]} Qd7 {[%emt 0:00:00]} 36. Qd3 {[%emt 0:03:05]} Qc6 {[%emt 0:00:00]} 37. Qe4 {[%emt 0:00:46]} Qc3 {[%emt 0:00:00]} 38. Bf2 {[%emt 0:00:34]} Nf6 {[%emt 0:00:46]} 39. Qc2 {[%emt 0:00:50]} Qa1 {[%emt 0:00:26]} 40. Kh2 {[%emt 0:01:54]} e4 {[%emt 0:02:06]} 41. fxe4 {[%emt 0:08:16]} Ng4+ {[%emt 0:00:46]} 42. Kg1 {[%emt 0:01:48]} Bc3 {[%emt 0:04:50]} 43. Bg3 $1 {[%emt 0:11:54]} Be5 {[%emt 0:13:38]} 44. Bf2 {[%emt 0:02:43]} Bc3 {[%emt 0:00:31]} 45. Bg3 $1 {[%emt 0:00:06]} Bd4+ {[%emt 0:00:15]} (45... Bxe1 $5 46. Qc7+ $8 Kh8 47. Qd8+ Kh7 48. Qc7+ Kg8 49. Qd8+ Kg7 50. Qe7+ Kg8 51. Qe6+ Kh8 52. Qe8+ Kg7 53. Qe7+ Kg8 54. Qe8+ Kg7 55. Qe7+ $11) 46. Kh1 {[%emt 0:00:52]} Be5 {[%emt 0:00:21]} 47. Qd3 $2 {[%emt 0:06:39]} (47. Bf2 $1 $11) 47... Qc1 $2 {[%emt 0:10:00]} ({Besser ist} 47... Qxa2 $19 {Und ...Qa1 würde nun gewinnen.} 48. Qd5 Qe2 (48... Bxg3 49. Qf7+ Kh6 50. Qf8+ Kh7 51. Qf7+ Kh8 52. Qe8+ Kh7 53. Qf7+ $11) 49. Qd7+ Bg7 (49... Kh6 50. Qf7 $17)) 48. Qf3 {[%emt 0:01:07]} Kg8 {[%emt 0:01:16]} (48... Nf6 $5 49. Bf2 $8 Ng4 50. Qf7+ Bg7 $17) 49. Qd3 {[%emt 0:00:28]} Bxg3 {[%emt 0:01:05]} 50. Qxg3 {[%emt 0:00:02]} Kf7 {[%emt 0:00:17]} 51. Qf3+ {[%emt 0:01:22]} Ke6 {[%emt 0:01:04]} 52. Qe2 {[%emt 0:00:11]} Ke5 {[%emt 0:00:12]} 53. g3 {[%emt 0:00:23]} Qd1 {[%emt 0:01:20]} 54. Qxd1 {[%emt 0:00:37]} Nf2+ {[%emt 0:00:04]} 55. Kg2 {[%emt 0:00:26]} Nxd1 {[%emt 0:00:05]} 56. Kf3 {[%emt 0:00:12]} Nc3 {[%emt 0:00:14]} 57. Ke3 {[%emt 0:01:49]} Nxe4 {[%emt 0:00:36]} 58. Nf3+ {[%emt 0:00:37]} (58. Nd3+ $1 $11 {war der einzige Weg, das Gleichgewicht zu halten.} Kf5 59. Kf3) 58... Kd5 $17 {[%emt 0:00:10]} 59. Kf4 {[%emt 0:00:48]} Nc3 {[%emt 0:01:17]} 60. Nd2 $2 {[%emt 0:00:38][%mdl 8192]} (60. Kg5 $2 Nxa2 (60... Ke4 61. Nd2+ Kd4 62. Kxg6 $11) 61. Kxg6 Nc1 $19) (60. g4 $17) 60... Kd4 $2 {[%emt 0:01:56]} (60... Nxa2 $19 {Und jetzt ...Kd4 wäre schön.} 61. Nc4 a4 62. Ne3+ Kc5 63. bxa4 Nc3 (63... b3 64. Nd1 $17)) 61. Nf3+ $1 $11 {[%emt 0:00:16]} Kd5 $2 {[%emt 0:03:59][%mdl 8192]} (61... Kc5 $11 62. Kg5 Nxa2 63. Kxg6 Nc1 64. Kxh5 (64. Nd2 Kd4 $11) 64... Nxb3) 62. Nd2 $1 $19 {[%emt 0:00:25]} ({Nicht} 62. Kg5 $2 Nxa2 (62... Ke4 63. Nd2+ Kd4 64. Kxg6 $11) 63. Kxg6 Nc1 64. Kxh5 (64. Nd2 $2 Nxb3 65. Nxb3 a4 $19) 64... Nxb3 $19) 62... Nxa2 {[%emt 0:00:07]} 63. Nc4 {[%emt 0:00:06]} a4 $1 {[%emt 0:00:21]} 64. Nb6+ {[%emt 0:00:01]} Kd4 {[%emt 0:00:08]} 65. Nxa4 {[%emt 0:00:03]} Nc1 {[%emt 0:00:07]} 66. g4 {[%emt 0:00:15]} Nxb3 {[%emt 0:01:38]} 67. gxh5 {[%emt 0:00:18]} gxh5 {[%emt 0:00:04]} 68. Kg5 {[%emt 0:00:12]} Nc5 $1 {[%emt 0:00:41]} 69. Nb2 {[%emt 0:00:06]} Kc3 {[%emt 0:02:44]} 70. Nd1+ {[%emt 0:00:19]} Kc2 {[%emt 0:00:49]} 71. Ne3+ {[%emt 0:00:07]} Kd3 {[%emt 0:00:01]} 72. Nd1 {[%emt 0:00:47]} b3 {[%emt 0:00:05]} 73. Kxh5 {[%emt 0:00:05]} Kc2 {[%emt 0:01:22]} 74. Ne3+ {[%emt 0:00:04]} Kc1 $1 {[%emt 0:00:05]} 75. Nc4 {[%emt 0:00:06] [#]} Ne4 $1 {[%emt 0:01:26]} 76. Kg4 {[%emt 0:02:47] [#]} Nd6 $1 {[%emt 0:00:08]} 77. Nxd6 {[%emt 0:01:32]} b2 {[%emt 0:00:04]} 78. h5 {[%emt 0:00:13]} b1=Q {[%emt 0:00:03]} (78... b1=B $2 {ist das falsche Schlagen.} 79. Nf5 $18) 79. Nf5 {[%emt 0:00:12]} Qb6 {[%emt 0:00:46]} 80. Kg5 {[%emt 0:00:06]} Qd8+ {[%emt 0:00:10]} 81. Kg6 {[%emt 0:00:51]} Qe8+ {[%emt 0:00:07]} 82. Kg5 {[%emt 0:01:22]} Kd2 {[%emt 0:00:42]} 83. h6 {[%emt 0:00:24]} Qf7 {[%emt 0:00:07]} 84. Ng7 {[%emt 0:00:46]} Kd3 {[%emt 0:01:14]} 85. Nh5 {[%emt 0:00:14]} Kd4 {[%emt 0:00:47]} 86. Nf6 {[%emt 0:01:32]} Ke5 {[%emt 0:00:16]} 87. Ng4+ {[%emt 0:00:11]} Ke6 {[%emt 0:00:07]} 88. Ne3 {[%emt 0:00:49]} Qf6+ {[%emt 0:00:13]} 89. Kh5 {[%emt 0:00:01]} 0-1

[Event "Israel National League 2024"]
[Site "Israel"]
[Date "2024.03.08"]
[Round "11.34"]
[White "Alekseev, Evgeny"]
[Black "Stolyarsky, Yegor"]
[Result "1-0"]
[ECO "C54"]
[WhiteElo "2563"]
[BlackElo "2111"]
[Annotator "TA"]
[PlyCount "149"]
[EventDate "2024.01.07"]
[EventType "team-tourn"]
[EventCountry "ISR"]
[SourceTitle "playchess.com"]
[Source "ChessBase"]
[SourceQuality "1"]
[TimeControl "40/5400+30:1800+30"]

{[%evp 46,149,0,0,120,114,117,117,119,119,141,140,142,120,134,133,151,146,151,101,108,109,102,104,111,98,114,105,106,98,98,84,93,84,98,93,106,106,100,98,113,102,98,98,109,100,248,243,242,231,374,112,410,379,416,416,393,329,416,410,413,413,397,385,390,331,364,242,238,262,274,247,251,253,253,0,141,0,212,274,260,247,278,295,241,236,298,217,219,437,432,393,217,217,457,330,306,235,364,325,464,515,693,568,576,561]} 1. e4 {[%emt 0:00:04]} e5 {[%emt 0:08:19]} 2. Nf3 {[%emt 0:00:32]} Nc6 {[%emt 0:00:55]} 3. Bc4 {[%emt 0:01:30]} Bc5 {[%emt 0:01:08]} 4. O-O {[%emt 0:04:15]} Nf6 {[%emt 0:00:42]} 5. d3 {[%emt 0:00:22]} d6 {[%emt 0:00:21]} 6. c3 {[%emt 0:00:24]} Bb6 {[%emt 0:00:35]} 7. Bb3 {[%emt 0:03:23]} Ne7 {[%emt 0:00:22] C54: Italienische Partie (Hauptvariante).} 8. Re1 {[%emt 0:10:08]} O-O {[%emt 0:01:24]} 9. Nbd2 {[%emt 0:12:20]} c6 {[%emt 0:00:08] wohl besser als 9...Ng6.} 10. Nf1 {[%emt 0:01:12]} Ng6 {[%emt 0:00:06]} 11. h3 {[%emt 0:00:54]} h6 {[%emt 0:00:24]} 12. Ng3 {[%emt 0:11:47]} d5 {[%emt 0:00:21] 12...Re8 scheint zu verschwinden.} 13. Be3 $5 {[%emt 0:05:07][%mdl 4] Eine interessante Nebenvariante.} dxe4 $146 {[%emt 0:12:50]} ({Predecessor:} 13... Bc7 14. Qc2 Re8 15. Rad1 Be6 16. d4 Nxe4 17. Nxe4 Bf5 18. Nfd2 exd4 19. Bxd4 dxe4 20. Nxe4 {½-½ Predojevic,B (2609)-Sokolov,I (2655) Sarajevo Bosnia-A 37th 2007 (1)}) 14. Bxb6 {[%emt 0:11:45]} Qxb6 {[%emt 0:07:48]} 15. Nxe4 {[%emt 0:04:02]} Nxe4 {[%emt 0:00:43]} 16. Rxe4 {[%emt 0:00:22]} Bf5 {[%emt 0:00:42]} 17. Re3 {[%emt 0:03:35]} Rad8 {[%emt 0:01:30]} 18. Nxe5 {[%emt 0:04:18]} Nxe5 {[%emt 0:00:40]} 19. Rxe5 {[%emt 0:00:04]} Bxd3 {[%emt 0:01:27]} 20. Qc1 {[%emt 0:13:48]} Rd6 {[%emt 0:09:00]} 21. Qf4 {[%emt 0:01:46]} c5 {[%emt 0:03:51]} 22. Bxf7+ {[%emt 0:05:29]} Kh8 {[%emt 0:00:04]} 23. Re8 {[%emt 0:00:17]} Rxe8 {[%emt 0:00:06]} 24. Bxe8 {[%emt 0:00:02]} Rf6 {[%emt 0:00:07]} (24... Qxb2 $11 {hält das Gleichgewicht.} 25. Qf8+ Kh7) 25. Qd2 $1 $16 {[%emt 0:00:23]} Rd6 {[%emt 0:02:08]} 26. Rd1 {[%emt 0:02:33]} c4 {[%emt 0:00:37]} 27. Re1 {[%emt 0:01:08]} Rf6 {[%emt 0:02:51]} 28. Bh5 {[%emt 0:02:17]} Qa5 {[%emt 0:00:37]} 29. Be2 {[%emt 0:00:29]} Re6 {[%emt 0:03:26]} 30. Bg4 {[%emt 0:00:38]} Qg5 {[%emt 0:01:23]} 31. Re3 {[%emt 0:00:19]} Bf5 {[%emt 0:02:08]} 32. Bxf5 {[%emt 0:00:41]} ({Vorzuziehen ist} 32. Bf3) 32... Rxe3 $16 {[%emt 0:00:21]} 33. Qxe3 {[%emt 0:00:33]} Qxf5 {[%emt 0:00:07]} 34. Qc1 {[%emt 0:00:29]} (34. Qxa7 $6 Qb1+ 35. Kh2 Qxb2 $11) 34... b5 {[%emt 0:01:48]} 35. Qd1 {[%emt 0:00:20]} Kh7 {[%emt 0:00:26]} 36. a3 {[%emt 0:00:13]} Qe4 {[%emt 0:00:40]} 37. g3 {[%emt 0:00:55]} a6 {[%emt 0:01:25]} 38. Qd2 {[%emt 0:00:34]} Qb1+ {[%emt 0:00:10]} 39. Kg2 $1 {[%emt 0:00:04]} Qe4+ {[%emt 0:00:09]} 40. f3 {[%emt 0:00:07]} Qb1 {[%emt 0:00:59]} 41. h4 {[%emt 0:04:20]} Kh8 {[%emt 0:01:46]} 42. g4 {[%emt 0:04:10]} Kh7 {[%emt 0:01:04]} 43. h5 {[%emt 0:00:09]} Kh8 {[%emt 0:00:28]} 44. Kf2 {[%emt 0:05:38]} Kh7 {[%emt 0:00:14]} 45. Ke3 {[%emt 0:02:40]} Kh8 {[%emt 0:03:50]} (45... Qg1+ $16 46. Ke4 Qc5) 46. Kf4 {[%emt 0:04:38]} Kh7 {[%emt 0:00:51]} 47. Qe2 {[%emt 0:01:09]} Qc1+ {[%emt 0:00:50]} (47... Qg1 $142 48. Qe4+ Kh8) 48. Ke4 $2 {[%emt 0:02:56]} (48. Ke5 $18 {ist der präzise Gewinnweg.}) 48... Qg1 $2 {[%emt 0:10:03][%mdl 8192]} (48... Qg5 $16 {kämpft weiter.} 49. Kd4 Qd8+ 50. Ke3 Qg5+ 51. Kf2 Qc1) 49. Kd5 $18 {[%emt 0:01:18]} Qb6 {[%emt 0:02:18]} 50. Qe4+ {[%emt 0:00:50]} Kh8 {[%emt 0:00:14]} 51. Qe8+ {[%emt 0:00:50]} Kh7 {[%emt 0:00:08]} 52. Qc6 {[%emt 0:02:14]} Qf2 {[%emt 0:01:18]} 53. Ke6 {[%emt 0:00:24]} (53. Qxa6 Qxf3+ 54. Kc5 Qf2+ 55. Kc6 (55. Kxb5 Qxb2+ 56. Kc5 Qf2+ 57. Kc6 Qf6+ 58. Kb5 Qg5+ 59. Kb4 Qe7+ 60. Ka4 Qd7+ 61. Qb5 Qxg4 $11) 55... Qxb2 $11) (53. Qg6+ Kg8 $16) 53... Qa7 {[%emt 0:02:15]} 54. Kd6 {[%emt 0:02:43]} Kh8 {[%emt 0:06:31]} 55. Qc8+ {[%emt 0:01:20]} Kh7 {[%emt 0:00:07]} 56. Qc5 {[%emt 0:01:56]} (56. Kc6 Qf2 $11) 56... Qb8+ {[%emt 0:03:49]} 57. Kc6 {[%emt 0:00:25]} Qh2 {[%emt 0:00:05]} 58. Qf5+ {[%emt 0:01:30]} Kh8 {[%emt 0:00:06]} 59. Qc8+ $1 {[%emt 0:00:50]} Kh7 {[%emt 0:00:08]} 60. Qf5+ {[%emt 0:00:31]} (60. Qxa6 $18 Qxb2 61. Qa5 (61. Qxb5 Qxc3 62. Qf5+ Kh8 $11)) 60... Kh8 $16 {[%emt 0:00:08]} 61. Qc8+ {[%emt 0:00:41]} (61. Qf8+ $1 $16 Kh7 62. a4 (62. Qf5+ Kg8 $14)) 61... Kh7 $18 {[%emt 0:00:06]} 62. Qxa6 {[%emt 0:00:35]} (62. Qf5+ Kg8 $11) 62... Qxb2 {[%emt 0:00:20]} 63. Qa5 $1 {[%emt 0:00:19]} (63. Qxb5 Qxc3 64. Qf5+ Kh8 65. Qc8+ (65. a4 $2 Qf6+ 66. Qxf6 gxf6 $19) 65... Kh7 $11) 63... Qe2 {[%emt 0:03:23]} 64. Kxb5 {[%emt 0:00:13]} (64. Qxb5 Qxf3+ 65. Kc5 Qxg4 $11) 64... Qxf3 {[%emt 0:00:13] [#]} 65. Kb4 $1 {[%emt 0:00:26]} (65. Kxc4 Qxg4+ 66. Kd3 Qd1+ 67. Ke3 Qg1+ 68. Ke4 Qg2+ 69. Kd3 Qf3+ 70. Kd4 Qf4+ 71. Kd3 Qf3+ 72. Kc2 Qe4+ 73. Kd2 Qf4+ 74. Kc2 Qe4+ 75. Kd2 Qf4+ 76. Ke2 Qe4+ 77. Kd2 $11) 65... Qxg4 {[%emt 0:01:37] [#]} 66. a4 $1 {[%emt 0:00:02]} Qd1 {[%emt 0:01:54]} 67. Qf5+ {[%emt 0:00:41]} ({Minderwertig wäre} 67. Kxc4 Qf1+ 68. Kb4 Qb1+ 69. Kc5 Qf5+ 70. Kb6 Qf6+ 71. Kb7 Qf3+ 72. Kc7 Qf7+ 73. Kb6 Qe6+ 74. Ka7 Qf7+ 75. Ka6 Qc4+ 76. Qb5 Qxc3 $11) 67... Kh8 {[%emt 0:00:06]} 68. Qc8+ {[%emt 0:00:35]} ({Lieber nicht} 68. Kxc4 Qxa4+ 69. Kd3 Qd1+ 70. Ke3 Qc1+ 71. Kd4 Qd2+ 72. Qd3 Qf2+ 73. Kd5 Qf7+ 74. Kc6 Qxh5 $11) 68... Kh7 {[%emt 0:00:05]} 69. Qxc4 {[%emt 0:00:16]} Qb1+ $2 {[%emt 0:02:07]} (69... Qxh5 70. Qe4+ Kg8 (70... Qg6 71. Qxg6+ Kxg6 72. a5 $18)) 70. Kc5 {[%emt 0:00:38]} Qf5+ {[%emt 0:00:10]} 71. Qd5 {[%emt 0:00:18]} Qf8+ {[%emt 0:00:38]} (71... Qc2 $142 72. Kb4 Qb2+ 73. Qb3 Qh2) 72. Kc4 {[%emt 0:00:54]} Qc8+ {[%emt 0:00:40]} (72... Qf4+ $142 73. Kb3 Qb8+ 74. Qb5 Qd6) 73. Kb3 $18 {[%emt 0:00:14]} Qc7 {[%emt 0:01:05]} 74. Qf5+ {[%emt 0:00:55]} Kh8 {[%emt 0:00:11]} 75. a5 {[%emt 0:00:38]} 1-0

[Event "Israel National League 2024"]
[Site "Israel"]
[Date "2024.03.08"]
[Round "11.35"]
[White "Gofman, Alex"]
[Black "Caspi, Israel"]
[Result "0-1"]
[ECO "A85"]
[WhiteElo "2221"]
[BlackElo "2468"]
[Annotator "TA"]
[PlyCount "60"]
[EventDate "2024.01.07"]
[EventType "team-tourn"]
[EventCountry "ISR"]
[SourceTitle "playchess.com"]
[Source "ChessBase"]
[SourceQuality "1"]
[TimeControl "40/5400+30:1800+30"]

{[%evp 9,60,3,7,-2,16,4,20,0,0,10,0,7,26,19,31,25,27,21,26,31,39,16,14,0,0,0,-6,-13,-6,-21,0,0,-13,-97,-69,-105,-108,-108,-110,-104,-107,-116,-117,-114,-113,-503,-497,-510,-485,-506,-496,-504,-491]} 1. d4 {[%emt 0:09:27]} f5 {[%emt 0:01:00]} 2. c4 {[%emt 0:00:46]} Nf6 {[%emt 0:00:06]} 3. Nc3 {[%emt 0:01:32]} g6 {[%emt 0:00:05]} 4. e3 {[%emt 0:00:43]} Bg7 {[%emt 0:00:22]} 5. Bd3 {[%emt 0:00:29]} O-O {[%emt 0:02:03]} 6. Nge2 {[%emt 0:00:52]} Nc6 {[%emt 0:03:49][%cal Bb8c6,Bc6e7,Be7g6,Bg6h4][%mdl 32]} 7. O-O {[%emt 0:00:29]} d6 {[%emt 0:02:52]} 8. b3 {[%emt 0:05:39] The position is equal.} e5 {[%emt 0:01:05]} 9. Bb2 {[%emt 0:00:34]} Bd7 {[%emt 0:03:33]} 10. Rc1 {[%emt 0:03:00]} e4 {[%emt 0:10:49]} 11. Bb1 {[%emt 0:00:22]} Ne7 {[%emt 0:02:10]} 12. d5 {[%emt 0:03:42]} g5 {[%emt 0:01:35]} 13. f3 {[%emt 0:01:27]} exf3 {[%emt 0:02:08]} 14. Rxf3 {[%emt 0:03:38]} Ng6 {[%emt 0:01:46]} 15. Nd4 {[%emt 0:06:03]} (15. Bxf5 $5 Nh4 16. Nd4 $14) 15... Nh4 {[%emt 0:03:06]} 16. Nxf5 {[%emt 0:07:06]} (16. Rf1 {is more complex.} Qe7 17. Qd2 Ng4 18. Rce1) 16... Bxf5 {[%emt 0:06:10]} 17. Bxf5 {[%emt 0:04:32]} Nxf3+ {[%emt 0:00:12]} 18. Qxf3 {[%emt 0:00:50]} Qe7 {[%emt 0:00:50]} 19. Rf1 {[%emt 0:05:47]} Ne8 {[%emt 0:08:53]} 20. Qh3 {[%emt 0:12:42]} Be5 {[%emt 0:11:09]} 21. Qh6 {[%emt 0:06:58]} (21. Bxh7+ Kg7 22. Rxf8 (22. Bf5 Rh8 $15) 22... Kxf8) (21. e4 $11 {keeps the balance.}) 21... Kh8 $17 {[%emt 0:13:33]} (21... Rxf5 $2 22. Rxf5 Bf6 (22... Bxc3 $2 23. Bxc3 Qxe3+ 24. Rf2 $18) 23. Kf1 $18) 22. Bxh7 {[%emt 0:01:06] [#] Threatening mate with Be4+.} Rxf1+ {[%emt 0:01:31]} 23. Kxf1 {[%emt 0:00:14] Black must now prevent Bf5+.} Qf6+ {[%emt 0:00:06]} ({Of course not} 23... Qxh7 $6 24. Qf8+ Qg8 25. Qh6+ Qh7 26. Qf8+ Qg8 27. Qh6+ Qh7 $11) 24. Qxf6+ {[%emt 0:00:19]} Nxf6 {[%emt 0:00:06]} 25. Bd3 {[%emt 0:04:52]} Rf8 {[%emt 0:01:17]} 26. Ke2 {[%emt 0:00:24]} Ng4 {[%emt 0:01:02] [#] ...Rf2+ is the strong threat. Black is more active.} ({Stronger than} 26... Bxh2 27. Ne4 Be5 28. Bxe5 dxe5 29. Nxg5 $16) 27. Kd2 $2 {[%emt 0:01:32][%mdl 8192] Now White is beyond hope.} (27. Nd1 $17) 27... Rf2+ $19 {[%emt 0:00:42] Black is clearly winning.} 28. Be2 {[%emt 0:00:01]} Rxg2 {[%emt 0:01:06]} (28... Bxh2 $2 {perishes.} 29. Nd1+ Be5 30. Nxf2 Nxf2 31. Bxe5+ dxe5 32. Bd3 $18) 29. h3 {[%emt 0:00:30]} Nf6 {[%emt 0:00:09]} 30. Kd3 {[%emt 0:00:28]} Rh2 {[%emt 0:22:15] Weighted Error Value: White=0.33/Black=0.04 (flawless) .  Loses game:     	White=1     	---        Mistake:       	White=1     	---        Inaccurate:     	White=1     	---        OK:         	White=5     	Black=9      Best:        	White=2     	Black=4} 0-1

[Event "Israel National League 2024"]
[Site "Israel"]
[Date "2024.03.08"]
[Round "11.36"]
[White "Golod, Vitali"]
[Black "Kunin, Pavel"]
[Result "1-0"]
[ECO "D94"]
[WhiteElo "2498"]
[BlackElo "2221"]
[Annotator "TA"]
[PlyCount "53"]
[EventDate "2024.01.07"]
[EventType "team-tourn"]
[EventCountry "ISR"]
[SourceTitle "playchess.com"]
[Source "ChessBase"]
[SourceQuality "1"]
[TimeControl "40/5400+30:1800+30"]

{[%evp 18,53,32,33,32,5,7,15,8,15,5,8,29,27,24,33,37,18,26,0,8,11,36,39,53,54,50,0,258,233,385,385,412,409,528,527,708,702]} 1. d4 {[%emt 0:00:03]} d5 {[%emt 0:07:46]} 2. c4 {[%emt 0:00:23]} c6 {[%emt 0:00:29]} 3. Nf3 {[%emt 0:00:43]} Nf6 {[%emt 0:00:12]} 4. e3 {[%emt 0:00:32]} g6 {[%emt 0:00:32]} 5. Nc3 {[%emt 0:01:25]} Bg7 {[%emt 0:00:13]} 6. Be2 {[%emt 0:00:51]} O-O {[%emt 0:00:16]} 7. O-O {[%emt 0:00:07]} Nbd7 {[%emt 0:07:29]} 8. cxd5 {[%emt 0:03:37]} cxd5 {[%emt 0:00:09]} 9. Qb3 {[%emt 0:00:13]} e6 {[%emt 0:00:23]} 10. Bd2 {[%emt 0:02:37]} Ne4 {[%emt 0:05:27]} 11. Rfc1 {[%emt 0:02:00]} Nxd2 {[%emt 0:00:50]} 12. Nxd2 {[%emt 0:00:06]} Qb6 {[%emt 0:04:22] The position is equal.} 13. a4 {[%emt 0:08:32]} Qxb3 {[%emt 0:04:48]} 14. Nxb3 {[%emt 0:01:21]} a6 {[%emt 0:00:05]} 15. a5 {[%emt 0:02:48]} Rd8 {[%emt 0:00:51]} 16. Na4 {[%emt 0:02:16]} e5 {[%emt 0:01:11]} 17. Rc7 {[%emt 0:16:38]} exd4 {[%emt 0:01:45]} 18. exd4 {[%emt 0:03:12]} Rb8 {[%emt 0:01:18]} 19. Rac1 {[%emt 0:08:02]} Nf8 {[%emt 0:06:21]} 20. Nb6 {[%emt 0:01:08]} Be6 {[%emt 0:02:29]} 21. Nc5 {[%emt 0:01:51] Wards off Nd7. Excellent horsemanship.} Bxd4 {[%emt 0:00:53]} 22. Nxb7 {[%emt 0:00:36]} ({White should try} 22. Rxb7 $14 Rxb7 (22... Bxb2 23. Rxb8 Rxb8 24. Rc2 $16) 23. Nxb7) 22... Bxb2 $2 {[%emt 0:03:03][%mdl 8192] [#]} (22... Re8 $11 23. Bxa6 Bxb2) 23. Nxd8 $18 {[%emt 0:02:05][%cal Bb7d8,Bd8e6,Be6f8,Bf8d7][%mdl 32]} Bxc1 $2 {[%emt 0:00:45]} (23... Rxd8 {might work better.} 24. Rb1 Be5) 24. Nxe6 {[%emt 0:01:44]} ({Less strong is} 24. Rxc1 Rxd8 25. Bxa6 Nd7 $18) ({Weaker is} 24. Bxa6 Bf4 25. Nxe6 Nxe6 26. Rc8+ Rxc8 27. Bxc8 Bc7 $16) 24... Bd2 {[%emt 0:02:14][%cal Bc1d2,Bd2a5,Ba5b6][%mdl 32]} 25. Nxf8 {[%emt 0:01:53]} Bxa5 {[%emt 0:00:47]} 26. Nfd7 {[%emt 0:00:37]} Bxb6 {[%emt 0:00:05]} 27. Rc6 {[%emt 0:00:20] Weighted Error Value: White=0.08 (flawless) /Black=0.52.  Loses game:     	---       	Black=1      Mistake:       	White=1     	Black=1      Inaccurate:     	White=1     	Black=1      OK:         	White=8     	Black=4      Best:        	White=3     	---} 1-0